bitfinex/quotes_ETHUSD_20240915
["timestamp","ask_amount","ask_price","bid_price","bid_amount"]
[1726441870849,0.1,2299.3,2297.9,2.9822]
[1726441870850,2.55,2298.1,2297.9,2.9822]
[1726441871065,2.55,2298.1,2296.1,0.1]
[1726441871066,2.55,2298.1,2295.8,3.0]
[1726441871067,0.1,2297.5,2295.8,3.0]
[1726441871274,10.44616331,2298.0,2294.1,0.015]
[1726441871275,0.45150408,2295.4,2294.1,0.015]
[1726441871561,0.45150408,2295.4,2291.9,0.1]
[1726441871562,3.1696,2295.0,2291.9,0.1]
[1726441871747,3.1696,2295.0,2293.0,4.36103]
[1726441871748,0.1,2294.4,2293.0,4.36103]
[1726441871965,0.1,2292.0,2290.2,0.1]
[1726441872164,13.354,2294.3,2289.9,2.05753158]
[1726441872165,2.0,2291.7,2289.9,2.05753158]
[1726441872464,0.1,2293.8,2289.9,2.05753158]
[1726441872465,2.0,2293.8,2293.1,4.36087]
[1726441872783,3.0027,2292.6,2292.2,0.40830538]
[1726441872984,14.93282162,2292.5,2290.3,0.94494901]
[1726441873188,2.0,2294.2,2291.6,0.1]
[1726441873481,2.0,2291.9,2291.2,0.24268533]
[1726441873648,2.0,2294.1,2290.9,0.1]
[1726441873649,10.0,2293.2,2290.9,0.1]
[1726441873846,8.712,2293.6,2291.0,0.70140389]
[1726441874092,8.712,2293.6,2291.4,4.36413]
[1726441874093,8.708,2293.5,2291.4,4.36413]
[1726441874247,8.703,2293.5,2292.8,4.36143]
[1726441874445,2.0,2293.4,2291.8,0.1]
[1726441874645,8.703,2293.5,2291.8,0.1]
[1726441874646,8.703,2293.5,2293.3,4.36052]
[1726441874877,10.0,2294.4,2293.3,0.436052]
[1726441875104,2.0,2296.0,2293.5,0.1]
[1726441875406,8.682,2295.3,2293.5,0.55]
[1726441875700,8.682,2295.3,2293.2,9.44949007]
[1726441875701,2.0,2296.5,2295.3,13.07016]
[1726441875849,10.0,2296.7,2295.3,17.97688]
[1726441876198,2.0769558,2296.8,2296.7,4.35407]
[1726441876199,0.0769558,2296.8,2296.7,4.35407]
[1726441876513,0.0769558,2296.8,2295.9,4.35543]
[1726441876514,2.0,2296.3,2295.9,4.35558]
[1726441876692,0.5282,2296.5,2296.3,4.35482]
[1726441876866,0.0769558,2296.8,2296.7,8.70814]
[1726441877051,0.0769558,2296.8,2296.7,13.933024]
[1726441877052,0.01196977,2296.8,2296.7,13.933024]
[1726441877250,0.01196977,2296.8,2296.7,13.06221]
[1726441877496,2.01196977,2296.8,2296.7,4.35407]
[1726441877683,2.01196977,2296.8,2296.7,8.70814]
[1726441877884,0.01196977,2296.8,2296.7,21.287094]
[1726441878200,10.0769558,2298.2,2298.1,4.35142]
[1726441878201,0.0769558,2298.2,2298.1,4.35142]
[1726441878380,0.0769558,2298.2,2296.2,4.35487]
[1726441878381,2.0,2297.5,2296.2,4.35487]
[1726441878548,0.58539655,2298.2,2296.2,0.435487]
[1726441878756,0.0269558,2298.2,2298.1,4.35142]
[1726441879003,10.0769558,2299.6,2298.1,4.35142]
[1726441879220,10.0769558,2299.6,2299.5,13.04631]
[1726441879221,0.0769558,2299.6,2299.5,13.04631]
[1726441879378,0.0769558,2299.6,2299.5,17.39508]
[1726441879575,0.0769558,2299.6,2299.5,24.74385]
[1726441879828,0.0769558,2302.4,2299.5,24.74385]
[1726441879829,0.0769558,2302.4,2300.9,4.34612]
[1726441879830,2.0,2301.6,2300.9,4.34612]
[1726441880100,2.0,2301.5,2300.9,4.34612]
[1726441880253,2.0769558,2301.0,2300.2,4.3474]
[1726441880457,0.0769558,2301.0,2300.3,4.34717]
[1726441880683,2.0,2300.9,2300.7,4.34647]
[1726441880917,0.0769558,2301.0,2300.0,4.34781]
[1726441881108,4.0,2300.9,2299.2,4.34928]
[1726441881405,0.0769558,2301.0,2299.2,4.34928]
[1726441881406,2.0,2300.7,2299.2,4.34928]
[1726441881612,8.62,2300.8,2298.6,3.0746]
[1726441881758,2.0,2300.7,2300.0,4.34771]
[1726441881962,2.0,2300.6,2300.3,4.34722]
[1726441882194,2.0,2300.6,2298.6,3.0746]
[1726441882195,2.0,2300.6,2300.5,4.34688]
[1726441882417,2.0,2300.6,2298.6,3.0746]
[1726441882418,0.0769558,2301.0,2299.3,4.34896]
[1726441882706,0.0769558,2301.0,2300.7,4.34644]
[1726441882913,0.0769558,2301.0,2299.0,0.63527177]
[1726441882914,2.0,2300.3,2299.2,4.34923]
[1726441883075,0.0769558,2301.0,2299.5,4.34865]
[1726441883076,1.95,2300.7,2299.5,4.34865]
[1726441883258,8.62,2300.7,2299.5,4.34861]
[1726441883453,0.0769558,2301.0,2300.0,4.34777]
[1726441883699,0.0769558,2301.0,2299.7,4.34833]
[1726441883700,0.0769558,2301.0,2300.9,4.34612]
[1726441884056,0.0769558,2301.0,2299.5,0.51910566]
[1726441884057,2.0,2300.2,2299.9,4.34782]
[1726441884259,2.0,2300.1,2300.0,4.34782]
[1726441884562,2.0,2300.9,2299.3,4.34896]
[1726441884778,0.0769558,2301.0,2300.9,4.34612]
[1726441884983,0.0769558,2301.0,2298.7,0.842501]
[1726441884984,2.0769558,2301.0,2298.7,0.742501]
[1726441885185,0.0769558,2301.0,2299.1,4.34941]
[1726441885405,0.0769558,2301.0,2299.6,4.34844]
[1726441885622,0.0769558,2301.0,2298.8,9.44949007]
[1726441885623,0.0769558,2301.0,2300.7,4.34649]
[1726441885930,0.0769558,2301.0,2298.6,3.38206]
[1726441885931,0.0769558,2301.0,2300.3,4.34722]
[1726441886261,0.0769558,2301.0,2299.7,4.34833]
[1726441886262,0.39602284,2301.1,2300.7,4.34638]
[1726441886553,4.0,2301.0,2300.6,4.34668]
[1726441886730,0.6441,2301.8,2299.3,4.34897]
[1726441886731,2.0,2300.7,2299.3,4.34897]
[1726441886861,2.0,2300.7,2300.5,4.34673]
[1726441887062,2.0,2300.6,2300.5,4.34673]
[1726441887319,2.0,2300.6,2299.6,4.34854]
[1726441887460,2.0,2300.2,2298.4,4.35083]
[1726441887676,9.1409,2300.5,2298.9,4.34984]
[1726441887677,2.0,2299.7,2298.9,4.34984]
[1726441887861,2.0,2299.6,2298.9,4.34984]
[1726441888131,2.0,2299.6,2298.7,4.35019]
[1726441888271,8.618,2299.5,2296.8,0.1769558]
[1726441888471,2.0,2299.3,2298.6,4.35039]
[1726441888681,2.0,2300.1,2298.9,4.34981]
[1726441888880,2.0,2300.1,2299.3,4.34913]
[1726441889077,2.0,2300.1,2299.4,4.3488]
[1726441889312,2.0,2299.4,2298.4,4.35078]
[1726441889518,2.0,2299.1,2298.5,4.35047]
[1726441889788,2.0,2299.4,2298.6,4.35045]
[1726441889998,2.0,2299.3,2298.0,4.35147]
[1726441890269,3.0,2299.9,2298.8,4.35009]
[1726441890586,0.45272948,2300.2,2299.0,4.34954]
[1726441890920,10.64852293,2301.7,2300.3,4.34724]
[1726441890921,2.0,2301.1,2300.3,4.34724]
[1726441891066,2.0,2301.1,2299.9,4.34797]
[1726441891067,2.0,2300.8,2299.9,4.34797]
[1726441891263,2.0,2300.0,2298.8,4.34997]
[1726441891506,14.34471,2301.7,2298.4,8.719]
[1726441891507,2.0,2300.4,2298.4,8.719]
[1726441891722,2.0,2300.4,2299.3,4.34904]
[1726441891881,2.0,2300.0,2299.1,4.34947]
[1726441892078,2.0,2300.3,2298.9,4.34989]
[1726441892319,8.626,2300.2,2299.0,4.34969]
[1726441892530,8.626,2300.2,2298.5,4.35064]
[1726441892531,8.7399,2301.2,2299.8,4.34802]
[1726441892710,0.45262539,2301.6,2300.2,4.34736]
[1726441893022,10.7399,2301.9,2300.9,4.34609]
[1726441893433,8.7399,2301.9,2301.1,4.34571]
[1726441893645,8.7399,2301.9,2300.3,4.34721]
[1726441893646,2.0,2301.5,2300.3,4.34721]
[1726441894076,2.0,2301.5,2300.4,4.34705]
[1726441894284,2.0,2301.4,2300.1,4.34759]
[1726441894548,4.34476,2301.7,2300.1,4.34759]
[1726441894549,12.38509369,2301.3,2300.1,4.34759]
[1726441894684,3.77145755,2301.2,2300.2,4.34743]
[1726441894882,10.614,2301.3,2300.2,4.34743]
[1726441895121,10.614,2301.3,2300.3,4.34719]
[1726441895280,0.45252559,2301.4,2300.5,4.34672]
[1726441895490,0.45252559,2301.4,2300.3,4.3472]
[1726441895491,2.0,2301.3,2299.7,0.0170374]
[1726441895737,0.68128619,2301.2,2299.7,0.0170374]
[1726441895883,2.0,2301.0,2299.7,4.3653774]
[1726441896085,2.0,2301.0,2299.9,4.34794]
[1726441896324,0.68135817,2300.9,2299.7,4.3653774]
[1726441896529,0.68135817,2300.8,2300.2,4.34739]
[1726441896736,2.0,2301.4,2300.2,4.34739]
[1726441897040,0.6812177,2301.3,2299.7,0.0170374]
[1726441897207,0.64906544,2302.0,2300.8,8.3299]
[1726441897400,0.68108012,2301.9,2301.2,4.34555]
[1726441897585,12.65087559,2301.8,2300.0,0.55]
[1726441897790,9.26196544,2302.3,2301.4,4.34517]
[1726441898087,9.26196544,2302.3,2301.2,0.55]
[1726441898088,1.77052175,2302.2,2301.2,4.89554]
[1726441898287,2.0,2301.4,2300.2,4.34734]
[1726441898494,0.64899133,2301.2,2300.4,4.34703]
[1726441898705,1.36233858,2301.1,2300.0,4.34764]
[1726441898921,0.64899133,2301.6,2300.4,4.34704]
[1726441899162,0.64899133,2301.6,2300.6,4.34652]
[1726441899450,0.64899133,2301.6,2299.7,4.3652574]
[1726441899451,0.64899133,2301.2,2300.2,4.34739]
[1726441899638,2.69242158,2301.1,2300.2,4.34739]
[1726441899791,2.04343025,2301.0,2300.2,4.34739]
[1726441899993,1.77097289,2300.9,2300.5,4.34684]
[1726441900212,0.68114342,2300.8,2300.5,4.34684]
[1726441900432,0.64899133,2301.6,2300.7,4.34645]
[1726441900590,1.771014,2301.5,2300.7,4.34645]
[1726441900802,1.771014,2301.4,2300.7,4.34646]
[1726441901016,0.68115923,2301.3,2300.1,3.0]
[1726441901221,0.68107314,2301.2,2301.0,4.3458]
[1726441901426,0.64899133,2301.7,2300.1,3.434755]
[1726441901427,0.64899133,2301.7,2300.6,4.34651]
[1726441901615,10.612,2302.0,2300.6,4.34651]
[1726441901817,0.64919367,2301.6,2300.6,4.34651]
[1726441902096,0.64919367,2301.6,2299.7,0.0170374]
[1726441902097,0.64919367,2301.3,2299.7,0.0170374]
[1726441902290,3.0,2301.4,2299.7,0.0170374]
[1726441902291,0.64903765,2300.5,2300.3,4.3472]
[1726441902541,2.04333963,2300.4,2299.7,0.0170374]
[1726441902836,2.0,2301.5,2300.1,4.34749]
[1726441902837,2.04333963,2300.3,2300.1,4.34749]
[1726441903038,2.04357312,2300.2,2299.7,0.0170374]
[1726441903192,1.77112784,2300.1,2300.0,4.34779]
[1726441903399,0.64901959,2300.4,2300.2,4.34744]
[1726441903694,2.04379717,2300.3,2300.2,4.34744]
[1726441903948,2.04379717,2300.3,2300.2,8.69488]
[1726441904316,0.68125718,2300.3,2300.2,13.04232]
[1726441904655,2.42019879,2300.3,2300.2,16.59232]
[1726441904852,2.04349294,2300.3,2300.2,16.59232]
[1726441905172,2.0,2301.8,2300.8,4.34628]
[1726441905456,2.45202754,2301.7,2301.0,4.34579]
[1726441905652,3.26926968,2301.6,2300.9,0.55]
[1726441905812,2.04313096,2301.5,2301.2,4.34542]
[1726441906013,2.04313096,2301.5,2300.6,4.34659]
[1726441906014,2.04313096,2301.4,2301.1,4.34569]
[1726441906212,9.1219,2301.9,2301.2,4.34554]
[1726441906213,2.04313096,2301.3,2301.2,4.34554]
[1726441906450,2.04313096,2301.3,2301.2,4.34555]
[1726441906664,2.49567129,2301.3,2301.2,9.2411]
[1726441907366,2.04313096,2301.3,2301.2,16.58665]
[1726441907557,2.04313096,2301.3,2301.2,4.89555]
[1726441907870,2.04313096,2301.3,2301.1,4.34558]
[1726441908072,2.04313096,2301.2,2301.1,4.34574]
[1726441908236,1.90718237,2301.7,2301.3,4.34536]
[1726441908432,3.95022065,2301.6,2301.2,4.34549]
[1726441908763,3.95022065,2301.5,2301.0,4.34581]
[1726441908917,1.90718237,2302.1,2300.1,9.08543618]
[1726441909282,3.94995786,2302.0,2300.4,16.59121]
[1726441909415,3.94995786,2302.0,2301.0,4.34585]
[1726441909416,3.94995786,2301.9,2301.0,4.34585]
[1726441909621,3.94995786,2301.8,2301.1,4.3457]
[1726441909922,3.94995786,2301.8,2300.3,4.34725]
[1726441909923,14.48815786,2301.7,2299.7,4.34829]
[1726441910132,3.94995786,2301.6,2300.6,4.34652]
[1726441910358,3.94995786,2301.6,2300.4,4.347]
[1726441910359,3.94995786,2301.5,2300.4,4.34695]
[1726441910539,3.94995786,2301.4,2300.4,4.34698]
[1726441910738,2.0,2301.2,2300.1,4.34752]
[1726441911048,2.0,2301.2,2299.6,4.34852]
[1726441911049,3.0,2300.4,2299.6,4.34852]
[1726441911271,3.94995786,2300.3,2300.2,8.69488]
[1726441911419,2.04448935,2300.3,2300.2,8.69488]
[1726441911934,2.04448935,2300.3,2300.2,13.04232]
[1726441912147,1.90718237,2301.4,2301.3,8.69074]
[1726441912356,0.68249728,2302.0,2301.0,0.55]
[1726441912357,1.90718237,2301.9,2301.0,0.55]
[1726441912575,0.68249728,2302.0,2301.0,0.55]
[1726441912576,0.68249728,2302.0,2301.5,4.34497]
[1726441912907,0.45251275,2302.3,2301.8,4.34426]
[1726441913461,0.45251275,2302.3,2302.0,4.34391]
[1726441913664,0.45251275,2302.3,2302.0,4.34389]
[1726441914017,0.45251275,2302.3,2302.2,4.34367]
[1726441914217,0.40251275,2302.3,2302.2,4.34367]
[1726441914418,0.40251275,2302.3,2301.6,4.89473]
[1726441914630,0.0769558,2302.4,2302.1,4.34372]
[1726441914855,0.0769558,2302.4,2302.1,8.68746]
[1726441915276,0.0769558,2302.4,2302.1,4.34371]
[1726441916224,0.0769558,2302.4,2302.3,4.34348]
[1726441916485,0.0769558,2302.4,2302.3,20.67221649]
[1726441916661,0.0769558,2302.4,2302.3,16.32873649]
[1726441916870,0.0769558,2302.4,2302.1,4.34373]
[1726441917183,0.0769558,2302.4,2302.1,4.34368]
[1726441917375,0.0769558,2302.4,2301.4,3.0]
[1726441917674,0.0769558,2302.4,2301.1,8.9394]
[1726441917675,0.0769558,2302.4,2302.3,13.58044]
[1726441918640,0.0769558,2302.4,2302.3,28.01569649]
[1726441918838,0.0769558,2302.4,2302.3,23.67221649]
[1726441919215,0.0769558,2303.7,2303.6,13.57309]
[1726441919642,0.0769558,2303.7,2303.6,20.91412]
[1726441920093,0.0769558,2305.1,2304.9,4.33858]
[1726441920094,0.52908624,2305.1,2304.9,4.33858]
[1726441920257,0.27198961,2305.0,2304.9,4.33858]
[1726441920577,0.27198961,2305.0,2304.9,13.01574]
[1726441920787,0.0769558,2305.1,2305.0,20.35356]
[1726441921143,0.0769558,2306.5,2306.4,4.33576]
[1726441921337,0.0769558,2306.5,2306.1,4.33615]
[1726441921582,0.0769558,2306.5,2305.4,3.0]
[1726441921583,0.0769558,2306.5,2306.4,8.67152]
[1726441922140,0.0769558,2306.5,2306.4,9.22152]
[1726441922780,0.0769558,2306.5,2306.4,12.22152]
[1726441923012,0.0769558,2306.5,2306.4,16.55728]
[1726441923301,9.06597566,2307.7,2307.3,4.33389]
[1726441923478,0.45177566,2307.7,2307.0,0.55]
[1726441923800,0.0769558,2307.9,2307.0,4.88454]
[1726441923941,0.0769558,2307.9,2307.8,4.33313]
[1726441924138,0.0769558,2307.9,2307.8,9.21626]
[1726441924387,0.0769558,2307.9,2307.8,20.64116649]
[1726441924707,0.0769558,2307.9,2307.8,24.97429649]
[1726441924841,0.0769558,2309.3,2309.2,8.661]
[1726441925043,0.0769558,2309.3,2309.2,4.3305]
[1726441925254,0.0769558,2309.3,2308.7,4.3314]
[1726441925469,0.0769558,2309.3,2309.2,4.3305]
[1726441925685,0.0769558,2309.3,2309.2,8.661]
[1726441926044,0.0769558,2309.3,2309.2,9.211]
[1726441926249,0.0769558,2309.3,2309.2,13.5415]
[1726441926892,0.0769558,2309.3,2309.2,4.3305]
[1726441927058,0.0769558,2309.3,2309.2,9.211]
[1726441927381,0.0769558,2309.3,2309.2,20.63327649]
[1726441927597,0.0769558,2309.3,2309.2,4.3305]
[1726441927746,0.0769558,2309.3,2309.2,9.211]
[1726441928150,0.0769558,2309.3,2309.2,4.3305]
[1726441928404,0.0769558,2309.3,2308.8,4.33124]
[1726441928405,0.0769558,2309.3,2308.1,7.09177649]
[1726441928555,0.0769558,2309.3,2309.1,4.33059]
[1726441928885,0.0769558,2309.3,2309.2,4.3305]
[1726441929107,0.0769558,2309.3,2309.2,12.9915]
[1726441929752,2.0,2311.6,2310.4,4.32818]
[1726441929753,13.198,2311.4,2310.4,4.32818]
[1726441929946,13.198,2311.4,2310.5,4.32803]
[1726441930191,2.0,2311.9,2310.2,0.55]
[1726441930368,8.9485558,2310.7,2310.0,4.32895]
[1726441930711,0.0769558,2310.7,2310.6,4.32788]
[1726441930989,0.0769558,2310.7,2310.4,4.32823]
[1726441931141,0.0769558,2310.7,2309.8,11.42096649]
[1726441931142,0.0769558,2310.7,2310.6,4.32788]
[1726441931495,0.0769558,2310.7,2310.5,4.32805]
[1726441931694,0.0769558,2310.7,2309.8,10.09177649]
[1726441931695,0.0769558,2310.7,2309.9,0.55]
[1726441931851,0.0769558,2310.7,2309.7,4.32946]
[1726441931852,4.4047658,2310.7,2309.7,4.32948]
[1726441932209,0.0769558,2310.7,2310.0,4.32889]
[1726441932486,0.0769558,2310.7,2308.9,8.6337]
[1726441932689,0.0769558,2310.7,2310.3,4.32825]
[1726441932892,0.0769558,2310.7,2310.1,4.32878]
[1726441933091,0.0769558,2310.7,2310.6,4.32788]
[1726441933259,0.0769558,2310.7,2310.6,8.65576]
[1726441933591,0.0769558,2310.7,2310.6,12.98364]
[1726441933890,9.2636558,2312.1,2311.4,4.32634]
[1726441934088,9.2636558,2312.1,2310.6,3.55]
[1726441934089,4.32581,2311.8,2310.7,4.32762]
[1726441934258,9.2636558,2312.1,2309.9,7.09177649]
[1726441934459,9.2636558,2312.1,2310.8,4.32744]
[1726441934787,4.32529,2312.0,2310.6,9.2542]
[1726441934991,0.0769558,2312.1,2311.2,7.09177649]
[1726441935190,0.0769558,2312.1,2311.5,4.32603]
[1726441935590,0.0769558,2312.1,2311.4,4.32627]
[1726441935738,0.0769558,2312.1,2311.6,4.3259]
[1726441935936,0.0769558,2312.1,2311.4,4.32626]
[1726441936297,10.4746,2312.0,2310.5,4.32797]
[1726441936642,10.4746,2312.0,2310.8,4.32744]
[1726441936643,4.32578,2311.8,2310.8,4.32744]
[1726441937047,4.32578,2311.8,2310.9,4.32718]
[1726441937341,8.92586369,2312.0,2311.1,4.32688]
[1726441937638,8.92586369,2312.0,2311.2,4.32671]
[1726441937938,8.92586369,2312.0,2311.3,4.32645]
[1726441938120,0.45126369,2312.0,2311.7,4.32566]
[1726441938332,0.45126369,2312.0,2311.9,4.32544]
[1726441938852,0.0769558,2312.1,2311.9,4.32544]
[1726441938853,0.0769558,2312.1,2312.0,8.6505]
[1726441938995,0.0769558,2312.1,2312.0,9.2005]
[1726441939199,0.0769558,2312.1,2311.1,4.3269]
[1726441939535,0.0769558,2312.1,2310.7,8.3924]
[1726441939536,0.0769558,2312.1,2312.0,4.32525]
[1726441939696,0.0769558,2312.1,2311.2,4.32673]
[1726441939900,0.0769558,2312.1,2310.7,15.48417649]
[1726441939901,0.0769558,2312.1,2311.0,4.32706]
[1726441940207,0.0769558,2312.1,2310.7,15.48417649]
[1726441940412,0.0769558,2312.1,2311.8,4.32546]
[1726441940810,8.4746,2312.0,2310.8,7.09177649]
[1726441941159,8.4746,2312.0,2310.9,4.3273]
[1726441941160,4.32564,2311.8,2310.9,4.3273]
[1726441941298,3.0,2311.9,2310.8,4.32736]
[1726441941493,8.4746,2312.0,2311.2,4.32661]
[1726441941733,8.4746,2312.0,2310.7,7.09177649]
[1726441941734,8.4746,2312.0,2311.3,4.32649]
[1726441941937,8.4746,2312.0,2311.5,4.32618]
[1726441942104,0.0769558,2312.1,2312.0,4.32525]
[1726441942306,0.0769558,2312.1,2311.9,4.32529]
[1726441942618,0.0769558,2312.1,2311.4,4.32629]
[1726441942825,0.0769558,2312.1,2312.0,4.32525]
[1726441942995,0.0769558,2312.1,2311.7,4.32579]
[1726441943437,0.0769558,2312.1,2311.3,4.32647]
[1726441943600,4.4022058,2312.1,2311.3,4.3264]
[1726441943798,0.0769558,2312.1,2310.8,7.09177649]
[1726441944102,0.0769558,2312.1,2311.7,4.32581]
[1726441944413,0.0769558,2312.1,2311.9,4.32541]
[1726441944751,0.0769558,2312.1,2311.9,4.32532]
[1726441945056,0.0769558,2312.1,2312.0,12.2005]
[1726441945207,0.0769558,2312.1,2312.0,16.52575]
[1726441945631,0.0769558,2312.1,2312.0,12.2005]
[1726441945855,0.0769558,2313.5,2312.7,4.3239]
[1726441946053,0.0769558,2313.5,2312.9,4.32357]
[1726441946338,0.0769558,2313.5,2312.6,4.32407]
[1726441946539,0.0769558,2313.5,2312.5,4.87417]
[1726441946894,0.0769558,2313.5,2313.0,4.32335]
[1726441947144,0.0769558,2313.5,2313.1,4.32306]
[1726441947545,0.0769558,2313.5,2313.2,4.87282]
[1726441947704,0.0769558,2313.5,2313.3,4.32264]
[1726441947899,0.0769558,2313.5,2313.3,4.26762839]
[1726441948442,0.0769558,2313.5,2313.4,4.32264]
[1726441948628,0.0769558,2313.5,2313.4,11.99590906]
[1726441948836,0.0769558,2313.5,2313.4,11.90946355]
[1726441949038,0.0769558,2313.5,2313.3,4.32266]
[1726441949218,0.0769558,2313.5,2313.4,8.64528]
[1726441949547,0.0769558,2313.5,2312.9,7.09177649]
[1726441949765,4.32314,2313.2,2312.4,7.09177649]
[1726441949916,4.32314,2313.2,2311.4,7.09177649]
[1726441949917,9.3164,2312.4,2311.4,7.09177649]
[1726441950102,4.32505,2312.2,2311.2,4.32669]
[1726441950299,4.32604,2311.6,2310.9,8.839]
[1726441950545,4.32567,2311.8,2310.9,8.839]
[1726441950801,12.3164,2312.6,2310.9,8.839]
[1726441951026,10.24271026,2312.5,2311.0,1.59307765]
[1726441951280,4.32388,2312.8,2311.6,15.93077649]
[1726441951487,0.0769558,2313.5,2312.4,4.32433]
[1726441951640,0.67549914,2313.4,2312.6,4.32397]
[1726441951845,4.3994758,2313.5,2312.2,7.09177649]
[1726441951846,0.0769558,2313.5,2312.5,4.32422]
[1726441952143,0.0769558,2313.5,2312.3,4.32463]
[1726441952144,0.0769558,2313.5,2313.4,8.64528]
[1726441952347,0.65272695,2314.5,2314.4,4.32077]
[1726441952686,0.0769558,2314.9,2314.6,4.32026]
[1726441952838,0.0769558,2314.9,2314.5,4.32058]
[1726441953032,0.0769558,2314.9,2314.6,4.32025]
[1726441953644,0.0769558,2314.9,2314.4,4.32073]
[1726441953977,0.0769558,2314.9,2313.5,4.32235]
[1726441953978,0.0769558,2314.9,2313.6,4.32215]
[1726441954180,0.0769558,2314.9,2312.9,8.9526]
[1726441954181,6.3490729,2314.8,2313.1,7.09177649]
[1726441954413,0.0769558,2314.9,2313.1,7.09177649]
[1726441954414,2.6827661,2314.7,2313.3,4.32278]
[1726441954715,2.0290429,2314.6,2313.9,4.32155]
[1726441955020,8.7168058,2314.9,2314.1,4.32127]
[1726441955021,0.67626004,2314.5,2314.1,4.32127]
[1726441955335,0.0769558,2314.9,2314.1,4.32117]
[1726441955478,0.67621625,2314.8,2314.4,0.55]
[1726441955672,0.0769558,2314.9,2314.4,0.55]
[1726441955909,4.32045,2314.6,2313.8,0.55]
[1726441956114,1.75796927,2314.5,2313.5,4.32242]
[1726441956313,1.75796927,2314.5,2313.3,4.32274]
[1726441956314,1.75796927,2314.4,2313.8,4.32183]
[1726441956632,0.0769558,2314.9,2313.4,4.32263]
[1726441956836,0.67626039,2314.8,2314.4,4.3207]
[1726441957033,0.0769558,2314.9,2314.7,4.32021]
[1726441957184,0.0769558,2314.9,2314.8,12.96006]
[1726441957389,0.0769558,2314.9,2314.8,9.19004]
[1726441957581,0.0769558,2314.9,2314.6,8.9526]
[1726441957582,0.0769558,2314.9,2314.7,0.55]
[1726441957785,0.0769558,2314.9,2314.5,0.55]
[1726441958034,0.0769558,2314.9,2314.7,4.32019]
[1726441958180,0.0769558,2314.9,2314.8,0.55]
[1726441958379,0.0769558,2314.9,2314.6,0.55]
[1726441958626,0.0769558,2314.9,2314.6,4.87025]
[1726441958978,0.0769558,2314.9,2314.1,4.32128]
[1726441958979,0.0769558,2314.9,2314.4,0.55]
[1726441959187,0.0769558,2314.9,2314.8,4.87002]
[1726441959483,0.0769558,2314.9,2314.8,9.19004]
[1726441959839,0.0769558,2314.9,2314.8,0.55]
[1726441959983,0.0769558,2314.9,2314.8,9.19004]
[1726441960339,0.65382224,2316.0,2315.4,4.86889]
[1726441960663,1.75933041,2315.9,2315.4,0.55]
[1726441960842,4.3942958,2316.3,2315.6,4.31839]
[1726441960843,0.67666554,2315.8,2315.6,4.31839]
[1726441961022,0.67666554,2315.8,2314.9,7.86976]
[1726441961023,4.31829,2315.8,2314.9,0.55]
[1726441961180,1.75932615,2315.7,2315.1,4.3194]
[1726441961382,4.31907,2315.4,2314.9,0.55]
[1726441961698,1.74908279,2315.3,2314.9,0.55]
[1726441961930,4.31907,2315.4,2314.9,0.55]
[1726441961931,1.0823797,2315.2,2314.9,0.55]
[1726441962225,0.65382224,2315.5,2314.9,0.55]
[1726441962226,1.08235365,2315.1,2314.9,0.55]
[1726441962431,4.97255224,2315.5,2314.9,0.55]
[1726441962730,1.08224753,2315.4,2314.9,0.55]
[1726441962886,1.35302234,2315.3,2314.9,0.55]
[1726441963083,5.67243739,2315.2,2314.9,0.55]
[1726441963283,8.6862,2315.7,2314.9,0.55]
[1726441963284,1.35303841,2315.1,2314.9,0.55]
[1726441963589,1.35285526,2315.0,2314.9,0.55]
[1726441963942,0.92453233,2315.0,2314.9,0.55]
[1726441964111,1.08203756,2315.1,2314.9,0.55]
[1726441964436,1.08203756,2315.0,2314.9,0.55]
[1726441964599,1.35283908,2315.0,2314.9,0.55]
[1726441964779,2.00655371,2315.0,2314.9,0.55]
[1726441964987,4.32149,2314.1,2313.4,9.1225]
[1726441965284,4.32149,2314.1,2312.9,13.44594]
[1726441965285,4.32203,2313.8,2312.9,13.44594]
[1726441965557,4.32275,2313.4,2312.5,4.3242]
[1726441965829,2.00601364,2313.3,2312.9,4.32344]
[1726441966026,1.35249516,2313.2,2312.4,9.1225]
[1726441966197,0.65351848,2313.7,2313.3,4.32267]
[1726441966398,3.1884,2314.4,2313.7,4.32194]
[1726441966399,0.65351848,2314.0,2313.7,4.32194]
[1726441966604,1.081484,2313.9,2313.5,4.32229]
[1726441966812,0.65351848,2314.2,2312.9,4.32345]
[1726441966985,4.97561848,2313.7,2312.7,4.32381]
[1726441967189,0.65323147,2313.5,2312.7,4.3238]
[1726441967431,0.65323147,2313.4,2312.9,4.32346]
[1726441967643,1.35194502,2313.3,2312.7,4.32395]
[1726441967931,1.08096382,2313.2,2313.1,12.96944]
[1726441968139,0.65323147,2314.0,2313.8,4.32177]
[1726441968335,0.65323147,2314.0,2313.9,8.6434]
[1726441968481,0.65323147,2314.2,2314.0,4.32152]
[1726441968685,4.31956,2315.1,2314.0,4.32152]
[1726441968686,1.3523323,2314.1,2314.0,4.32152]
[1726441968909,1.35233277,2314.1,2314.0,4.32152]
[1726441969232,0.65323147,2314.5,2314.0,4.87137]
[1726441969490,0.65323147,2314.8,2314.7,4.32021]
[1726441969607,0.65323147,2315.0,2314.8,4.31999]
[1726441969809,1.05237038,2315.1,2314.8,8.64001]
[1726441969810,1.05239824,2314.9,2314.8,8.64001]
[1726441970011,1.05256619,2314.9,2314.4,4.32059]
[1726441970213,1.05256619,2314.8,2314.3,0.55]
[1726441970408,1.05243603,2314.7,2314.2,4.32107]
[1726441970617,0.67872284,2315.4,2313.4,4.32249]
[1726441970618,4.32108,2314.3,2313.4,4.32249]
[1726441970846,1.05237634,2314.2,2313.0,9.1225]
[1726441971140,1.05237634,2314.1,2313.6,4.32213]
[1726441971307,1.05237634,2314.0,2313.9,4.3217]
[1726441971509,1.05237634,2314.0,2313.6,4.32213]
[1726441971722,1.05237634,2313.9,2313.8,4.32188]